fUSD/lending_fUSD_20240513
["ID","MTS","AMOUNT","RATE_DAILY","PERIOD"]
[326917151,1715575565172,4000.0,0.00011112,2]
[326917152,1715575565194,2053.22504024,0.00011112,2]
[326917153,1715575572914,150.53,8.889e-05,2]
[326917154,1715575591199,1796.24495976,0.00011132,2]
[326917155,1715575591222,4000.0,0.00011132,2]
[326917156,1715575591242,4000.0,0.00011132,2]
[326917157,1715575591262,1666.19504024,0.00011132,2]
[326917201,1715575693398,657.69,0.00011087,2]
[326917202,1715575717451,1401.29453613,0.00011147,2]
[326917203,1715575729514,250.0,0.00011095,2]
[326917204,1715575765943,24.82042363,0.00011075,2]
[326917205,1715575765966,1870.42957637,0.00011075,2]
[326917209,1715575807457,2129.57042363,0.00011147,2]
[326917210,1715575807480,876.87506346,0.00011147,2]
[326917211,1715575811066,1000.0,0.00011061,2]
[326917213,1715575819360,155.0,0.00011147,2]
[326917214,1715575821652,712.0,0.00011088,2]
[326917215,1715575826141,250.0,0.00011085,2]
[326917235,1715575831680,-1552.8314616,0.00011148,2]
[326917236,1715575831692,-538.72781616,0.00011148,2]
[326917237,1715575831722,-984.72072224,0.00011148,2]
[326917238,1715575831731,-219.13297533,0.00011167,2]
[326917241,1715575832166,-115.42702467,0.00011167,2]
[326917242,1715575832175,-150.0,0.00011182,2]
[326917243,1715575832184,-170.54,0.00011279,2]
[326917244,1715575832193,-500.0,0.00011518,2]
[326917245,1715575832203,-370.05342017,0.00011527,2]
[326917260,1715575838029,-129.94657983,0.00011527,2]
[326917261,1715575838040,-492.85499384,0.00011536,2]
[326917270,1715575840005,-7.14500616,0.00011536,2]
[326917271,1715575840015,-500.0,0.00011545,2]
[326917272,1715575840024,-500.0,0.00011554,2]
[326917273,1715575840034,-500.0,0.00011562,2]
[326917274,1715575840044,-500.0,0.00011571,2]
[326917275,1715575840053,-500.0,0.0001158,2]
[326917276,1715575840063,-446.0203554,0.0001158,2]
[326917320,1715575842884,-53.9696446,0.0001158,2]
[326917321,1715575842895,-500.0,0.00011589,2]
[326917322,1715575842904,-364.21200001,0.00011598,2]
[326917323,1715575843010,-135.78799999,0.00011598,2]
[326917324,1715575843020,-500.0,0.00011606,2]
[326917325,1715575843029,-148.29170236,0.00011615,2]
[326917340,1715575962274,-268.1006071,0.00011287,2]
[326917341,1715575962299,-523.01232752,0.00011288,2]
[326917342,1715575962323,-167.29,0.00011289,2]
[326917343,1715575962344,-500.0,0.00011492,2]
[326917344,1715575962364,-2541.59706538,0.00011499,2]
[326917345,1715576014693,-3006.44548709,0.00011285,2]
[326917346,1715576014716,-523.01232752,0.00011286,2]
[326917347,1715576014738,-470.54218539,0.00011483,2]
[326917348,1715576015288,-29.45781461,0.00011483,2]
[326917349,1715576015309,-3970.54218539,0.00011498,2]
[326917350,1715576017932,-454.90307564,0.00011498,2]
[326917351,1715576017954,-3545.09692436,0.00011499,2]
[326917352,1715576034227,-1424.74905284,0.00011499,2]
[326917353,1715576043786,2575.25094716,0.00011443,2]
[326917354,1715576043812,1882.52719284,0.00011443,2]
[326917355,1715576052485,500.0,0.00011474,2]
[326917356,1715576055055,1617.47280716,0.0001135,2]
[326917357,1715576055079,4000.0,0.0001135,2]
[326917358,1715576055102,2972.09719284,0.0001135,2]
[326917359,1715576098520,500.0,0.00011466,2]
[326917360,1715576122663,527.90280716,0.0001135,2]
[326917361,1715576122684,4000.0,0.0001135,2]
[326917362,1715576332604,-250.0,0.00011263,2]
[326917363,1715576332626,-430.4,0.00011268,2]
[326917364,1715576332646,-3006.44548709,0.00011349,2]
[326917365,1715576332668,-150.0,0.00011349,2]
[326917366,1715576332690,-7262.15451291,0.0001135,2]
[326917367,1715576457090,-164.82,0.00011245,2]
[326917368,1715576457117,-1640.28226492,0.0001135,2]
[326917369,1715576465753,500.0,0.00011395,2]
[326917371,1715576511657,500.0,0.00011386,2]
[326917372,1715576515866,1194.89773508,0.00011264,2]
[326917373,1715576515887,4000.0,0.00011264,2]
[326917374,1715576515910,531.14226492,0.00011264,2]
[326917375,1715576557354,500.0,0.00011378,2]
[326917376,1715576587461,1563.34563265,0.00011315,2]
[326917377,1715576587896,1405.51210243,0.00011376,2]
[326917378,1715576587918,2098.24981367,0.00011376,2]
[326917379,1715576603949,500.0,0.00011369,2]
[326917380,1715576649803,500.0,0.0001136,2]
[326917381,1715576651147,-500.0,0.00011404,2]
[326917382,1715576651169,-500.0,0.00011413,2]
[326917383,1715576651194,-500.0,0.00011422,2]
[326917384,1715576651218,-500.0,0.0001143,2]
[326917385,1715576651241,-500.0,0.00011439,2]
[326917386,1715576651263,-500.0,0.00011448,2]
[326917387,1715576651286,-500.0,0.00011457,2]
[326917388,1715576651308,-500.0,0.00011501,2]
[326917389,1715576695753,500.0,0.00011351,2]
[326917391,1715576742324,500.0,0.00011342,2]
[326917392,1715576797220,250.0,0.00011212,2]
[326917414,1715576889513,655.68,0.00011156,2]
[326917415,1715576942320,164.83,0.00011203,2]
[326917425,1715577025652,1929.49,0.00011203,2]
[326917426,1715577025677,901.75018633,0.00011203,2]
[326917427,1715577025699,985.77981367,0.00011203,2]
[326917432,1715577031893,-351.56071379,0.0001151,2]
[326917433,1715577031905,-148.43928621,0.0001151,2]
[326917434,1715577031915,-320.73071379,0.0001156,2]
[326917505,1715577032902,-2679.26928621,0.0001156,2]
[326917506,1715577032912,-351.70829764,0.00011615,2]
[326917507,1715577032921,-499.99,0.00011615,2]
[326917508,1715577032930,-500.0,0.00011624,2]
[326917509,1715577032940,-500.0,0.00011633,2]
[326917510,1715577032949,-500.0,0.00011642,2]
[326917511,1715577032958,-500.0,0.0001165,2]
[326917512,1715577032967,-500.0,0.00011659,2]
[326917513,1715577032976,-500.0,0.00011668,2]
[326917514,1715577032985,-500.0,0.00011677,2]
[326917515,1715577032994,-500.0,0.00011686,2]
[326917516,1715577033003,-150.0,0.00011689,2]
[326917517,1715577033011,-150.0,0.00011689,2]
[326917518,1715577033022,-3000.0,0.0001169,2]
[326917519,1715577033031,-500.0,0.00011694,2]
[326917520,1715577033040,-500.0,0.00011703,2]
[326917521,1715577033049,-500.0,0.00011712,2]
[326917522,1715577033058,-500.0,0.00011721,2]
[326917523,1715577033067,-500.0,0.0001173,2]
[326917524,1715577033076,-500.0,0.00011738,2]
[326917525,1715577033085,-1943.30489471,0.0001185,2]
[326917526,1715577033097,-1056.69510529,0.0001185,2]
[326917527,1715577033106,-885.88871137,0.00011912,2]
[326917528,1715577033115,-4226.94169461,0.00012,2]
[326917529,1715577033128,-773.05830539,0.00012,2]
[326917530,1715577033137,-457.39909841,0.00012008,2]
[326917531,1715577033146,-769.5425962,0.0001201,2]
[326917532,1715577033157,-2230.4574038,0.0001201,2]
[326917533,1715577033166,-3501.23422683,0.00012051,2]
[326917535,1715577033176,-410.64,0.000121,2]
[326917536,1715577033185,-305.79,0.000121,2]
[326917537,1715577033194,-415.14,0.000121,2]
[326917538,1715577033203,-523.13,0.000121,2]
[326917539,1715577033212,-424.89,0.000121,2]
[326917540,1715577033222,-300.4,0.000121,2]
[326917541,1715577033231,-868.86,0.000121,2]
[326917542,1715577033240,-415.14,0.000121,2]
[326917543,1715577033249,-868.86,0.000121,2]
[326917544,1715577033259,-11.57843824,0.000121,2]
[326917545,1715577033271,-408.78156176,0.000121,2]
[326917546,1715577033280,-420.36,0.000121,2]
[326917547,1715577033290,-91.31677038,0.000121,2]
[326917548,1715577033305,-323.82322962,0.000121,2]
[326917549,1715577033315,-868.86,0.000121,2]
[326917550,1715577033324,-868.86,0.000121,2]
[326917551,1715577033333,-415.14,0.000121,2]
[326917552,1715577033345,-415.14,0.000121,2]
[326917553,1715577033354,-150.59,0.000121,2]
[326917554,1715577033364,-868.86,0.000121,2]
[326917555,1715577033375,-868.86,0.000121,2]
[326917556,1715577033386,-415.14,0.000121,2]
[326917557,1715577033396,-415.14,0.000121,2]
[326917558,1715577033405,-415.14,0.000121,2]
[326917559,1715577033414,-415.14,0.000121,2]
[326917560,1715577033424,-415.14,0.000121,2]
[326917561,1715577033433,-415.14,0.000121,2]
[326917562,1715577033443,-415.14,0.000121,2]
[326917563,1715577033452,-415.14,0.000121,2]
[326917564,1715577033462,-829.69,0.000121,2]
[326917565,1715577033471,-1295.10865689,0.00012158,2]
[326917566,1715577033481,-2185.20322741,0.0001216,2]
[326917567,1715577033493,-814.79677259,0.0001216,2]
[326917568,1715577033502,-509.39400201,0.000122,2]
[326917569,1715577033515,-359.46599799,0.000122,2]
[326917570,1715577033524,-415.14,0.000122,2]
[326917571,1715577033534,-415.14,0.000122,2]
[326917572,1715577033543,-173.16,0.000122,2]
[326917573,1715577033553,-154.543905,0.00012257,2]
[326917574,1715577033562,-3000.0,0.0001232,2]
[326917575,1715577033572,-1000.0,0.000124,2]
[326917576,1715577033583,-2202.88962709,0.00012403,2]
[326917577,1715577033596,-1525.24937291,0.00012403,2]
[326917578,1715577033606,-155.0,0.000125,2]
[326917579,1715577033618,-156.055918,0.00012542,2]
[326917580,1715577033628,-655.68,0.00012551,2]
[326917581,1715577033641,-334.56,0.00012563,2]
[326917582,1715577033652,-1887.6471,0.0001258,2]
[326917583,1715577033663,-1000.0,0.000126,2]
[326917584,1715577033673,-1806.05548419,0.000126,2]
[326917617,1715577037973,-550.65473018,0.000126,2]
[326917624,1715577040165,-143.28978563,0.000126,2]
[326917625,1715577040175,-152.55261395,0.00012661,2]
[326917701,1715577043050,-2.19553642,0.00012661,2]
[326917712,1715577070068,525.43147424,8.962e-05,2]
[326917713,1715577087650,2409.97938712,8.402e-05,2]
[326917720,1715577483155,366.93295971,8.402e-05,2]
[326917721,1715577486869,1939.44339472,8.402e-05,2]
[326917722,1715577508575,159.0,0.00025,120]
[326917723,1715577879825,250.0,0.00011205,2]
[326917725,1715577968125,393.41,0.00011229,2]
[326917726,1715578006438,1050.21364557,0.00011171,2]
[326917727,1715578006462,1573.44635443,0.00011171,2]
[326917729,1715578107976,164.82,0.00011009,2]
[326917790,1715578232141,-523.01232752,0.00011484,2]
[326917791,1715578232150,-979.66212674,0.00011484,2]
[326917792,1715578232375,-675.17501982,0.00011484,2]
[326917799,1715578238510,-2770.60811447,0.00011484,2]
[326917800,1715578238522,-2220.75893654,0.00011485,2]
[326917801,1715578238533,-268.1006071,0.00011485,2]
[326917802,1715578238543,-364.09293867,0.00011486,2]
[326917803,1715578238553,-7511.44304258,0.00011486,2]
[326917804,1715578238564,-3006.44548709,0.00011487,2]
[326917805,1715578238575,-761.47947183,0.00011496,2]
[326917806,1715578238585,-165.06,0.00011498,2]
[326917808,1715578238596,-180.19215289,0.00011507,2]
[326917810,1715578238607,-1262.9767,0.00011508,2]
[326917812,1715578238617,-245000.0,0.00011508,2]
[326917814,1715578238628,-192.05470357,0.0001151,2]
[326917816,1715578238638,-156.416067,0.0001151,2]
[326917818,1715578238650,-25307.69808722,0.00011598,2]
[326917819,1715578238662,-366765.26231944,0.000116,2]
[326917820,1715578238680,-819027.05087815,0.000116,2]
[326917833,1715578240350,-869.085,0.000116,2]
[326917834,1715578240367,-7752.53091236,0.000116,2]
[326917835,1715578240381,-951.12698987,0.000116,2]
[326917836,1715578240395,-1445.24581942,0.000116,2]
[326917869,1715578243539,-3980.77896846,0.000116,2]
[326917870,1715578243552,-101936.9191123,0.000116,2]
[326917871,1715578243564,-159.407674,0.000116,2]
[326917872,1715578243576,-159.407674,0.000116,2]
[326917873,1715578243586,-151.0,0.000116,2]
[326917874,1715578243596,-151.0,0.000116,2]
[326917875,1715578243607,-151.0,0.000116,2]
[326917876,1715578243617,-151.0,0.000116,2]
[326917877,1715578243627,-151.0,0.000116,2]
[326917878,1715578243637,-151.0,0.000116,2]
[326917879,1715578243647,-351.558453,0.000116,2]
[326917880,1715578243658,-186.432721,0.000116,2]
[326917881,1715578243669,-351.558453,0.000116,2]
[326917882,1715578243680,-186.432721,0.000116,2]
[326917883,1715578243694,-151.0,0.000116,2]
[326917884,1715578243704,-151.0,0.000116,2]
[326917885,1715578243714,-2920.602461,0.000116,2]
[326917886,1715578243726,-151.0,0.000116,2]
[326917887,1715578243737,-2920.602461,0.000116,2]
[326917888,1715578243747,-604.853289,0.000116,2]
[326917889,1715578243759,-272.28412,0.000116,2]
[326917890,1715578243771,-604.853289,0.000116,2]
[326917891,1715578243781,-151.0,0.000116,2]
[326917892,1715578243791,-151.0,0.000116,2]
[326917893,1715578243801,-151.0,0.000116,2]
[326917894,1715578243812,-151.0,0.000116,2]
[326917895,1715578243824,-151.0,0.000116,2]
[326917896,1715578243835,-151.0,0.000116,2]
[326917897,1715578243845,-154.212034,0.000116,2]
[326917898,1715578243855,-151.0,0.000116,2]
[326917899,1715578243865,-152.920451,0.000116,2]
[326917900,1715578243875,-445.459799,0.000116,2]
[326917901,1715578243886,-151.0,0.000116,2]
[326917902,1715578243896,-151.0,0.000116,2]
[326917903,1715578243906,-445.459799,0.000116,2]
[326917904,1715578243916,-151.585233,0.000116,2]
[326917905,1715578243926,-151.917216,0.000116,2]
[326917906,1715578243937,-2451.240306,0.000116,2]
[326917907,1715578243948,-2451.240306,0.000116,2]
[326917909,1715578243958,-151.0,0.000116,2]
[326917910,1715578243968,-803.228645,0.000116,2]
[326917911,1715578243978,-151.0,0.000116,2]
[326917912,1715578243988,-155.0,0.00011607,2]
[326917913,1715578243998,-531.86902666,0.00011607,2]
[326917914,1715578244008,-1000.0,0.00011607,2]
[326917915,1715578244019,-525.509597,0.00011608,2]
[326917916,1715578244029,-151.0,0.00011608,2]
[326917917,1715578244039,-525.509597,0.00011608,2]
[326917918,1715578244049,-151.0,0.00011608,2]
[326917919,1715578244059,-151.0,0.00011608,2]
[326917920,1715578244069,-151.0,0.00011608,2]
[326917921,1715578244079,-151.0,0.00011608,2]
[326917922,1715578244089,-151.0,0.00011608,2]
[326917923,1715578244100,-151.0,0.00011608,2]
[326917924,1715578244110,-151.0,0.00011608,2]
[326917925,1715578244120,-1369.619126,0.00011608,2]
[326917926,1715578244131,-1137.329326,0.00011608,2]
[326917927,1715578244143,-1369.619126,0.00011608,2]
[326917928,1715578244154,-1137.329326,0.00011608,2]
[326917929,1715578244164,-151.0,0.00011608,2]
[326917930,1715578244175,-185.948844,0.00011608,2]
[326917931,1715578244187,-159.407674,0.00011608,2]
[326917932,1715578244197,-159.407674,0.00011608,2]
[326917933,1715578244207,-159.407674,0.00011608,2]
[326917934,1715578244216,-159.407674,0.00011608,2]
[326917935,1715578244226,-151.0,0.00011608,2]
[326917936,1715578244235,-151.0,0.00011608,2]
[326917937,1715578244245,-151.0,0.00011608,2]
[326917938,1715578244256,-151.0,0.00011608,2]
[326917939,1715578244267,-151.0,0.00011608,2]
[326917940,1715578244277,-151.0,0.00011608,2]
[326917941,1715578244287,-151.0,0.00011608,2]
[326917942,1715578244299,-151.0,0.00011608,2]
[326917943,1715578244309,-151.0,0.00011608,2]
[326917944,1715578244319,-151.0,0.00011608,2]
[326917945,1715578244329,-151.0,0.00011608,2]
[326917946,1715578244340,-151.0,0.00011608,2]
[326917947,1715578244350,-351.558453,0.00011608,2]
[326917948,1715578244360,-351.558453,0.00011608,2]
[326917949,1715578244371,-186.432721,0.00011608,2]
[326917950,1715578244381,-186.432721,0.00011608,2]
[326917951,1715578244391,-351.558453,0.00011608,2]
[326917952,1715578244402,-351.558453,0.00011608,2]
[326917953,1715578244412,-186.432721,0.00011608,2]
[326917954,1715578244423,-186.432721,0.00011608,2]
[326917955,1715578244433,-151.0,0.00011608,2]
[326917956,1715578244443,-233.016602,0.00011608,2]
[326917957,1715578244453,-151.0,0.00011608,2]
[326917958,1715578244464,-151.0,0.00011608,2]
[326917959,1715578244474,-2920.602461,0.00011608,2]
[326917960,1715578244485,-2920.602461,0.00011608,2]
[326917961,1715578244496,-228.775078,0.00011608,2]
[326917962,1715578244507,-2920.602461,0.00011608,2]
[326917963,1715578244519,-2920.602461,0.00011608,2]
[326917964,1715578244530,-604.853289,0.00011608,2]
[326917965,1715578244540,-604.853289,0.00011608,2]
[326917966,1715578244550,-604.853289,0.00011608,2]
[326917967,1715578244560,-604.853289,0.00011608,2]
[326917968,1715578244571,-151.0,0.00011608,2]
[326917969,1715578244580,-151.0,0.00011608,2]
[326917970,1715578244590,-151.0,0.00011608,2]
[326917971,1715578244600,-151.0,0.00011608,2]
[326917972,1715578244610,-151.0,0.00011608,2]
[326917973,1715578244619,-151.0,0.00011608,2]
[326917974,1715578244629,-151.0,0.00011608,2]
[326917975,1715578244639,-151.0,0.00011608,2]
[326917976,1715578244650,-151.0,0.00011608,2]
[326917977,1715578244660,-151.0,0.00011608,2]
[326917978,1715578244671,-445.459799,0.00011608,2]
[326917979,1715578244688,-445.459799,0.00011608,2]
[326917980,1715578244699,-157.858506,0.00011608,2]
[326917981,1715578244708,-445.459799,0.00011608,2]
[326917982,1715578244719,-445.459799,0.00011608,2]
[326917983,1715578244728,-2451.240306,0.00011608,2]
[326917984,1715578244738,-2451.240306,0.00011608,2]
[326917985,1715578244748,-2451.240306,0.00011608,2]
[326917986,1715578244760,-2451.240306,0.00011608,2]
[326917987,1715578244771,-611181.73838827,0.00011609,2]
[326917989,1715578246264,-803.228645,0.000116,2]
[326917990,1715578246274,-151.0,0.00011608,2]
[326917991,1715578246283,-803.228645,0.00011608,2]
[326917992,1715578246292,-151.0,0.00011608,2]
[326917993,1715578246301,-803.228645,0.00011608,2]
[326917994,1715578246310,-159.039808,0.00011608,2]
[326917995,1715578246320,-803.228645,0.00011608,2]
[326917996,1715578246329,-803.228645,0.00011608,2]
[326917997,1715578246339,-2671.616967,0.00011609,2]
[326917998,1715578246350,-602.34,0.00011609,2]
[326917999,1715578246362,-677.57587675,0.00011609,2]
[326918000,1715578246373,-13876.27145866,0.00011609,2]
[326918001,1715578246384,-545.67799561,0.00011609,2]
[326918002,1715578246396,-37792.09523383,0.00011609,2]
[326918003,1715578246407,-3389.83,0.00011609,2]
[326918004,1715578246452,-273.31193874,0.000116,2]
[326918005,1715578246551,-335.30570427,0.000116,2]
[326918006,1715578246564,-632.25287615,0.000116,2]
[326918009,1715578377882,250.0,0.00011321,2]
[326918014,1715578543664,1748.77,0.00011069,2]
[326918015,1715578604585,164.83,0.00010973,2]
[326918016,1715578659008,168.37339461,0.00011385,2]
[326918017,1715578906156,250.0,0.00010952,2]
[326918018,1715578970500,314.73,0.00010917,2]
[326918020,1715579123427,379.72,0.00010844,2]
[326918021,1715579157554,3503.7619161,0.0001135,2]
[326918022,1715579211559,1165.51,0.00010876,2]
[326918074,1715579362841,250.0,0.00010823,2]
[326918075,1715579377451,-1788.28552106,0.0001141,2]
[326918076,1715579377474,-3006.44548709,0.00011411,2]
[326918077,1715579377495,-268.1006071,0.00011411,2]
[326918078,1715579377518,-1625.41216563,0.00011412,2]
[326918079,1715579377540,-523.01232752,0.00011427,2]
[326918080,1715579377562,-523.01232752,0.00011429,2]
[326918081,1715579377584,-150.0,0.00011479,2]
[326918082,1715579377608,-150.0,0.00011489,2]
[326918083,1715579377631,-7511.44304258,0.0001149,2]
[326918084,1715579377655,-13597.21793606,0.000115,2]
[326918085,1715579377678,-1128.07058544,0.00011507,2]
[326918086,1715579402253,250.0,0.0001106,2]
[326918087,1715579410564,-525.34082525,0.00011506,2]
[326918088,1715579410590,-6949.84866467,0.00011507,2]
[326918089,1715579410616,-45572.81051008,0.00011508,2]
[326918090,1715579417134,324.81,0.00011054,2]
[326918100,1715579432382,-983.2592,0.00011508,2]
[326918143,1715579438350,-1617.29269,0.0001149,2]
[326918144,1715579438437,-999.858006,0.0001149,2]
[326918155,1715579440587,-3030.649304,0.0001149,2]
[326918156,1715579440597,-39846.25418992,0.00011508,2]
[326918157,1715579440607,-100000.0,0.00011508,2]
[326918158,1715579440617,-500.0,0.00011508,2]
[326918159,1715579440626,-156.41606699,0.00011509,2]
[326918160,1715579440635,-3000.0,0.0001154,2]
[326918161,1715579440645,-2215.09557867,0.00011607,2]
[326918169,1715579441230,-257.33243686,0.00011607,2]
[326918170,1715579441240,-267.82250688,0.00011607,2]
[326918171,1715579441249,-1.83436896,0.00011607,2]
[326918172,1715579441261,-193.03982297,0.00011607,2]
[326918173,1715579441270,-135.50838475,0.00011607,2]
[326918174,1715579441281,-494.12868577,0.00011607,2]
[326918202,1715579446648,-2263.35662396,0.00011607,2]
[326918203,1715579446658,-883.170144,0.00011607,2]
[326918204,1715579446667,-658.682709,0.00011607,2]
[326918205,1715579446679,-849.40855545,0.00011607,2]
[326918206,1715579446691,-34.9048679,0.00011607,2]
[326918207,1715579446701,-231.96473083,0.00011607,2]
[326918208,1715579446710,-563.69290083,0.00011607,2]
[326918209,1715579446720,-250.33663644,0.00011607,2]
[326918210,1715579446729,-690.72713567,0.00011607,2]
[326918211,1715579446738,-295.61347159,0.00011607,2]
[326918212,1715579446748,-239.64364452,0.00011607,2]
[326918213,1715579446794,-1000.0,0.00011607,2]
[326918217,1715579473509,165.94,0.0001111,2]
[326918219,1715579477145,500.0,0.0001111,2]
[326918220,1715579478863,748.21,0.00011135,2]
[326918221,1715579483914,1078.19,0.00011224,2]
[326918223,1715579587410,200.0,0.00011187,2]
[326918224,1715579637036,23900.0,0.0001119,2]
[326918225,1715579637592,158.15,0.00011158,2]
[326918226,1715579650465,155.0,0.00011406,2]
[326918227,1715579653572,3006.44548709,0.00011406,2]
[326918228,1715579654789,3503.7619161,0.00011329,2]
[326918229,1715579704495,483.68,0.00011319,2]
[326918230,1715579742397,500.0,0.00012,12]
[326918231,1715579862399,250.0,0.0001121,2]
[326918232,1715579882608,250.0,0.00011175,2]
[326918233,1715579886195,860.83,0.00011175,2]
[326918234,1715579969693,401.43,0.00011171,2]
[326918237,1715580121691,9031.33,0.00011203,2]
[326918238,1715580179126,161.48,0.00011203,2]
[326918239,1715580197201,204900.57344532,0.00011203,2]
[326918240,1715580256937,36817.0,0.00025,120]
[326918244,1715580363342,250.0,0.00011177,2]
[326918245,1715580370107,573.55,0.00011177,2]
[326918262,1715580461218,678.85,0.00011109,2]
[326918263,1715580503105,347.01591069,0.00011109,2]
[326918264,1715580519036,319.66720333,0.00011109,2]
[326918265,1715580520103,400.65652236,0.00011109,2]
[326918266,1715580540090,400.58305642,0.00011109,2]
[326918270,1715580563487,1335.215626,0.0001135,2]
[326918275,1715580588186,180.07141713,0.00011109,2]
[326918276,1715580602173,180.5159053,0.00011109,2]
[326918277,1715580620178,180.02850647,0.00011109,2]
[326918281,1715580631663,-2183.7396,0.00011407,2]
[326918282,1715580631751,-1974.8225,0.00011407,2]
[326918283,1715580631763,-2358.12695049,0.00011407,2]
[326918284,1715580631772,-10234.82845441,0.00011408,2]
[326918285,1715580631784,-6131.52104559,0.00011408,2]
[326918286,1715580631793,-2552.3170646,0.00011416,2]
[326918287,1715580631893,409.45867235,0.00011109,2]
[326918288,1715580631906,-951.4448515,0.00011416,2]
[326918289,1715580631916,-2180.97372465,0.0001149,2]
[326918290,1715580631927,-819.02627535,0.0001149,2]
[326918291,1715580631937,-150.0,0.000115,2]
[326918292,1715580631947,-150.6688,0.00011508,2]
[326918293,1715580631957,-4949.53355244,0.00011508,2]
[326918295,1715580637606,-3168.81000003,0.00011508,2]
[326918317,1715580637854,-909.2889916,0.00011508,2]
[326918318,1715580637866,-5862.51986911,0.00011508,2]
[326918324,1715580639979,-67502.20678682,0.00011508,2]
[326918325,1715580639989,-1000.0,0.00011508,2]
[326918326,1715580639998,-496.8277,0.00011508,2]
[326918327,1715580640008,-1448.6783,0.00011508,2]
[326918328,1715580640018,-2866.6588,0.00011508,2]
[326918329,1715580640029,-4000.0,0.00011508,2]
[326918330,1715580640039,-131838.36373656,0.00011508,2]
[326918331,1715580640126,-961.51875694,0.00011508,2]
[326918332,1715580640138,-656.05,0.00011508,2]
[326918333,1715580640150,-740.2316118,0.00011508,2]
[326918334,1715580640161,-493.48282125,0.00011508,2]
[326918335,1715580642044,-696.32668811,0.00011508,2]
[326918336,1715580642262,-5763.8297,0.00011508,2]
[326918409,1715580643200,-485.2305232,0.00011508,2]
[326918410,1715580643211,-4084.85645114,0.00011508,2]
[326918423,1715580645755,-83900.994411,0.00011508,2]
[326918424,1715580645764,-862.4196703,0.00011606,2]
[326918425,1715580645773,-195.07957425,0.00011607,2]
[326918426,1715580645782,-3005.31799787,0.00011607,2]
[326918427,1715580645791,-230.45208504,0.00011607,2]
[326918428,1715580645801,-996.33987832,0.00011607,2]
[326918429,1715580645810,-3000.0,0.00011607,2]
[326918430,1715580645819,-61070.42143536,0.00011609,2]
[326918431,1715580645830,-1733.76130648,0.00011609,2]
[326918432,1715580645841,-404.0,0.00011609,2]
[326918433,1715580645852,-359.85154904,0.00011609,2]
[326918434,1715580645863,-324.92839964,0.00011609,2]
[326918435,1715580645922,175.66,9.019e-05,2]
[326918436,1715580645941,-922.12073848,0.00011609,2]
[326918437,1715580645952,-524.74502416,0.00011609,2]
[326918438,1715580645963,-1523.895,0.00011609,2]
[326918439,1715580645975,-311.51745496,0.00011609,2]
[326918440,1715580647876,409.45867235,0.00011109,2]
[326918441,1715580648185,180.02850647,0.00011109,2]
[326918442,1715580661863,161.49,0.00011053,2]
[326918443,1715580702276,1500.0,0.00011028,2]
[326918444,1715580707007,-5700.0,0.0001225,5]
[326918445,1715580722379,409.45867235,0.00011053,2]
[326918446,1715580726180,298.69141915,0.00011053,2]
[326918447,1715580733746,63756.55311915,0.00011053,2]
[326918448,1715580738399,552.74972124,0.00011053,2]
[326918449,1715580740170,299.86858437,0.00011053,2]
[326918450,1715580771302,214.98,0.00011013,2]
[326918451,1715580778347,8644.3069,0.00011308,2]
[326918452,1715580807222,161.70513458,0.00011399,2]
[326918453,1715580870323,250.0,0.00011004,2]